fUST/lending_fUST_20251004
["ID","MTS","AMOUNT","RATE_DAILY","PERIOD"]
[389150733,1759591873337,-500.0,0.00019973,2]
[389150734,1759591873347,-500.0,0.0002,2]
[389150735,1759591873356,-500.0,0.0002,2]
[389150736,1759591873366,-500.0,0.0002,2]
[389150737,1759591873375,-500.0,0.0002,2]
[389150738,1759591873385,-500.0,0.0002,2]
[389150739,1759591873394,-251.23050368,0.0002,2]
[389150740,1759591873405,-500.0,0.0002,2]
[389150741,1759591873415,-1039.39,0.0002,2]
[389150742,1759591873425,-507.83,0.0002,2]
[389150743,1759591873435,-500.0,0.0002,2]
[389150744,1759591873446,-500.0,0.0002,2]
[389150745,1759591873456,-500.0,0.0002,2]
[389150746,1759591873465,-500.0,0.0002,2]
[389150747,1759591873475,-500.0,0.0002,2]
[389150748,1759591873485,-500.0,0.0002,2]
[389150749,1759591873495,-500.0,0.0002,2]
[389150750,1759591873504,-500.0,0.0002,2]
[389150751,1759591873514,-500.0,0.0002,2]
[389150752,1759591873523,-500.0,0.0002,2]
[389150753,1759591873532,-1109.72,0.0002,2]
[389150754,1759591873541,-658.4,0.0002,2]
[389150755,1759591873550,-500.0,0.0002,2]
[389150756,1759591873559,-500.0,0.0002,2]
[389150757,1759591873568,-500.0,0.0002,2]
[389150758,1759591873577,-500.0,0.0002,2]
[389150759,1759591873587,-500.0,0.0002,2]
[389150760,1759591873597,-500.0,0.0002,2]
[389150761,1759591873606,-500.0,0.0002,2]
[389150762,1759591873616,-500.0,0.0002,2]
[389150763,1759591873626,-1722.53,0.0002,2]
[389150764,1759591873635,-500.0,0.0002,2]
[389150765,1759591873644,-500.0,0.0002,2]
[389150766,1759591873655,-500.0,0.0002,2]
[389150767,1759591873664,-500.0,0.0002,2]
[389150768,1759591873673,-500.0,0.0002,2]
[389150769,1759591873683,-500.0,0.0002,2]
[389150770,1759591873692,-500.0,0.0002,2]
[389150771,1759591873701,-500.0,0.0002,2]
[389150772,1759591873711,-500.0,0.0002,2]
[389150773,1759591873721,-500.0,0.0002,2]
[389150774,1759591873731,-151.0,0.0002,2]
[389150775,1759591873741,-500.0,0.0002,2]
[389150776,1759591873750,-561.02,0.0002,2]
[389150777,1759591873760,-500.0,0.0002,2]
[389150778,1759591873768,-151.0,0.0002,2]
[389150779,1759591873777,-277.157872,0.0002,2]
[389150780,1759591873787,-606.7,0.0002,2]
[389150781,1759591873796,-151.0,0.0002,2]
[389150782,1759591873809,-151.0,0.0002,2]
[389150783,1759591873819,-500.0,0.0002,2]
[389150784,1759591873828,-500.0,0.0002,2]
[389150785,1759591873838,-273.94564963,0.0002,2]
[389150786,1759591873847,-576.96,0.0002,2]
[389150787,1759591873856,-500.0,0.0002,2]
[389150788,1759591873867,-500.0,0.0002,2]
[389150789,1759591873877,-500.0,0.0002,2]
[389150790,1759591873887,-815.78,0.0002,2]
[389150791,1759591873896,-500.0,0.0002,2]
[389150792,1759591873906,-500.0,0.0002,2]
[389150793,1759591873916,-500.0,0.0002,2]
[389150794,1759591873927,-551.35,0.0002,2]
[389150795,1759591873937,-503.54,0.0002,2]
[389150796,1759591873947,-500.0,0.0002,2]
[389150797,1759591873957,-552.14,0.0002,2]
[389150798,1759591873967,-1000.0,0.0002,2]
[389150799,1759591873977,-500.0,0.0002,2]
[389150800,1759591873987,-500.0,0.0002,2]
[389150801,1759591873996,-500.0,0.0002,2]
[389150802,1759591874005,-500.0,0.0002,2]
[389150803,1759591874015,-500.0,0.0002,2]
[389150804,1759591874024,-500.0,0.0002,2]
[389150805,1759591874033,-500.0,0.0002,2]
[389150806,1759591874042,-500.0,0.0002,2]
[389150807,1759591874052,-500.0,0.0002,2]
[389150808,1759591874062,-500.0,0.0002,2]
[389150809,1759591874071,-500.0,0.0002,2]
[389150810,1759591874079,-3807.0,0.0002,2]
[389150811,1759591874088,-500.0,0.0002,2]
[389150812,1759591874098,-500.0,0.0002,2]
[389150813,1759591874107,-983.77,0.0002,2]
[389150814,1759591874117,-500.0,0.0002,2]
[389150815,1759591874126,-500.0,0.0002,2]
[389150816,1759591874135,-500.0,0.0002,2]
[389150817,1759591874144,-717.9,0.0002,2]
[389150818,1759591874154,-500.0,0.0002,2]
[389150819,1759591874163,-500.0,0.0002,2]
[389150820,1759591874173,-151.0,0.0002,2]
[389150821,1759591874182,-151.0,0.0002,2]
[389150822,1759591874191,-500.0,0.0002,2]
[389150823,1759591874201,-500.0,0.0002,2]
[389150824,1759591874211,-500.0,0.0002,2]
[389150825,1759591874220,-500.0,0.0002,2]
[389150826,1759591874229,-500.0,0.0002,2]
[389150827,1759591874239,-535.53,0.0002,2]
[389150828,1759591874249,-500.0,0.0002,2]
[389150829,1759591874258,-500.0,0.0002,2]
[389150830,1759591874268,-500.0,0.0002,2]
[389150831,1759591874277,-539.76,0.0002,2]
[389150832,1759591874286,-500.0,0.0002,2]
[389150833,1759591874296,-500.0,0.0002,2]
[389150834,1759591874305,-151.0,0.0002,2]
[389150835,1759591874315,-151.0,0.0002,2]
[389150836,1759591874326,-151.0,0.0002,2]
[389150837,1759591874335,-1081.73,0.0002,2]
[389150838,1759591874345,-785.95,0.0002,2]
[389150839,1759591874355,-500.0,0.0002,2]
[389150840,1759591874364,-151.0,0.0002,2]
[389150841,1759591874373,-500.0,0.0002,2]
[389150842,1759591874383,-500.0,0.0002,2]
[389150843,1759591874392,-500.0,0.0002,2]
[389150844,1759591874402,-500.0,0.0002,2]
[389150845,1759591874412,-475.9178438,0.0002,2]
[389150846,1759591874421,-500.0,0.0002,2]
[389150847,1759591874430,-996.16,0.0002,2]
[389150848,1759591874440,-500.0,0.0002,2]
[389150849,1759591874449,-500.0,0.0002,2]
[389150850,1759591874459,-500.0,0.0002,2]
[389150851,1759591874468,-1061.25,0.0002,2]
[389150852,1759591874478,-500.0,0.0002,2]
[389150853,1759591874487,-500.0,0.0002,2]
[389150854,1759591874496,-500.0,0.0002,2]
[389150855,1759591874505,-151.0,0.0002,2]
[389150856,1759591874515,-1035.1,0.0002,2]
[389150857,1759591874524,-500.0,0.0002,2]
[389150858,1759591874533,-154.157323,0.0002,2]
[389150859,1759591874543,-571.62,0.0002,2]
[389150860,1759591874553,-500.0,0.0002,2]
[389150861,1759591874562,-500.0,0.0002,2]
[389150862,1759591874572,-500.0,0.0002,2]
[389150863,1759591874582,-940.09,0.0002,2]
[389150864,1759591874592,-500.0,0.0002,2]
[389150865,1759591874602,-500.0,0.0002,2]
[389150866,1759591874612,-414.19280358,0.0002,2]
[389150867,1759591874623,-500.0,0.0002,2]
[389150868,1759591874633,-500.0,0.0002,2]
[389150869,1759591874642,-500.0,0.0002,2]
[389150870,1759591874652,-500.0,0.0002,2]
[389150871,1759591874662,-151.0,0.0002,2]
[389150872,1759591874671,-685.26,0.0002,2]
[389150873,1759591874680,-500.0,0.0002,2]
[389150874,1759591874690,-151.0,0.0002,2]
[389150875,1759591874699,-500.0,0.0002,2]
[389150876,1759591874709,-426.29412645,0.0002,2]
[389150877,1759591874718,-468.94397043,0.0002,2]
[389150878,1759591874728,-1089.32,0.0002,2]
[389150879,1759591874844,-500.0,0.0002,2]
[389150880,1759591874854,-521.57,0.0002,2]
[389150881,1759591874863,-500.0,0.0002,2]
[389150882,1759591874873,-500.0,0.0002,2]
[389150883,1759591874882,-500.0,0.0002,2]
[389150884,1759591874891,-381.15904883,0.0002,2]
[389150885,1759591874900,-500.0,0.0002,2]
[389150886,1759591874910,-500.0,0.0002,2]
[389150887,1759591874919,-500.0,0.0002,2]
[389150888,1759591874928,-500.0,0.0002,2]
[389150889,1759591874938,-480.36958762,0.0002,2]
[389150890,1759591874948,-500.0,0.0002,2]
[389150891,1759591874957,-500.0,0.0002,2]
[389150892,1759591874966,-190.54917175,0.0002,2]
[389150893,1759591874975,-151.0,0.0002,2]
[389150894,1759591874985,-500.0,0.0002,2]
[389150895,1759591874994,-500.0,0.0002,2]
[389150896,1759591875004,-500.0,0.0002,2]
[389150897,1759591875013,-500.0,0.0002,2]
[389150898,1759591875022,-500.0,0.0002,2]
[389150899,1759591875031,-500.0,0.0002,2]
[389150900,1759591875041,-500.0,0.0002,2]
[389150901,1759591875050,-638.24,0.0002,2]
[389150902,1759591875060,-556.89,0.0002,2]
[389150903,1759591875069,-151.679228,0.0002,2]
[389150904,1759591875078,-500.0,0.0002,2]
[389150905,1759591875087,-500.0,0.0002,2]
[389150906,1759591875097,-500.0,0.0002,2]
[389150907,1759591875106,-589.32323707,0.0002,2]
[389150908,1759591875115,-500.0,0.0002,2]
[389150909,1759591875125,-224.81872,0.0002,2]
[389150910,1759591875134,-935.25,0.0002,2]
[389150911,1759591875143,-500.0,0.0002,2]
[389150912,1759591875154,-151.0,0.0002,2]
[389150913,1759591875166,-224.81872,0.0002,2]
[389150914,1759591875176,-500.0,0.0002,2]
[389150915,1759591875185,-224.81872,0.0002,2]
[389150916,1759591875195,-224.81872,0.0002,2]
[389150917,1759591875204,-500.0,0.0002,2]
[389150918,1759591875214,-500.0,0.0002,2]
[389150919,1759591875224,-468.81489536,0.0002,2]
[389150920,1759591875233,-163.02676,0.0002,2]
[389150921,1759591875244,-500.0,0.0002,2]
[389150922,1759591875254,-163.02676,0.0002,2]
[389150923,1759591875264,-500.0,0.0002,2]
[389150924,1759591875273,-163.02676,0.0002,2]
[389150925,1759591875282,-500.0,0.0002,2]
[389150926,1759591875291,-163.02676,0.0002,2]
[389150927,1759591875301,-3190.15,0.0002,2]
[389150928,1759591875311,-500.0,0.0002,2]
[389150929,1759591875320,-178.54979957,0.0002,2]
[389150930,1759591875330,-500.0,0.0002,2]
[389150931,1759591875339,-500.0,0.0002,2]
[389150932,1759591875349,-500.0,0.0002,2]
[389150933,1759591875358,-1767.35,0.0002,2]
[389150934,1759591875368,-151.0,0.0002,2]
[389150935,1759591875377,-151.0,0.0002,2]
[389150936,1759591875387,-500.0,0.0002,2]
[389150937,1759591875396,-500.0,0.0002,2]
[389150938,1759591875407,-500.0,0.0002,2]
[389150939,1759591875416,-1021.71,0.0002,2]
[389150940,1759591875426,-500.0,0.0002,2]
[389150941,1759591875435,-722.22,0.0002,2]
[389150942,1759591875445,-500.0,0.0002,2]
[389150943,1759591875454,-512.79,0.0002,2]
[389150944,1759591875463,-500.0,0.0002,2]
[389150945,1759591875473,-500.0,0.0002,2]
[389150946,1759591875482,-151.0,0.0002,2]
[389150947,1759591875491,-1130.19,0.0002,2]
[389150948,1759591875501,-151.0,0.0002,2]
[389150949,1759591875510,-500.0,0.0002,2]
[389150950,1759591875519,-500.0,0.0002,2]
[389150951,1759591875528,-594.94,0.0002,2]
[389150952,1759591875538,-427.1135,0.0002,2]
[389150953,1759591875547,-500.0,0.0002,2]
[389150954,1759591875556,-1634.65,0.0002,2]
[389150955,1759591875566,-427.1135,0.0002,2]
[389150956,1759591875575,-755.21,0.0002,2]
[389150957,1759591875584,-638.84,0.0002,2]
[389150958,1759591875594,-427.1135,0.0002,2]
[389150959,1759591875603,-427.1135,0.0002,2]
[389150960,1759591875623,-1184.66,0.0002,2]
[389150961,1759591875638,-1037.44,0.0002,2]
[389150962,1759591875655,-500.0,0.0002,2]
[389150963,1759591875675,-500.0,0.0002,2]
[389150964,1759591875691,-151.0,0.0002,2]
[389150965,1759591875708,-500.0,0.0002,2]
[389150966,1759591875725,-1102.84,0.0002,2]
[389150967,1759591875739,-151.0,0.0002,2]
[389150968,1759591875758,-151.0,0.0002,2]
[389150969,1759591875777,-500.0,0.0002,2]
[389150970,1759591875794,-500.0,0.0002,2]
[389150971,1759591875813,-500.0,0.0002,2]
[389150972,1759591875828,-500.0,0.0002,2]
[389150973,1759591875845,-376.06112681,0.0002,2]
[389150974,1759591875858,-500.0,0.0002,2]
[389150975,1759591875873,-888.19,0.0002,2]
[389150976,1759591875890,-500.0,0.0002,2]
[389150977,1759591875905,-502.07718622,0.0002,2]
[389150978,1759591875921,-707.88,0.0002,2]
[389150979,1759591875937,-151.0,0.0002,2]
[389150980,1759591875951,-500.0,0.0002,2]
[389150981,1759591875966,-3472.11,0.0002,2]
[389150982,1759591875982,-500.0,0.0002,2]
[389150983,1759591875998,-607.97,0.0002,2]
[389150984,1759591876016,-500.0,0.0002,2]
[389150985,1759591876033,-500.0,0.0002,2]
[389150986,1759591876048,-2253.27,0.0002,2]
[389150987,1759591876063,-500.0,0.0002,2]
[389150988,1759591876078,-151.0,0.0002,2]
[389150989,1759591876092,-500.0,0.0002,2]
[389150990,1759591876108,-151.0,0.0002,2]
[389150991,1759591876123,-500.0,0.0002,2]
[389150992,1759591876143,-429.81151381,0.0002,2]
[389150993,1759591876163,-616.30732628,0.0002,2]
[389150994,1759591876185,-500.0,0.0002,2]
[389150995,1759591876206,-1207.5,0.0002,2]
[389150996,1759591876224,-151.0,0.0002,2]
[389150997,1759591876241,-151.0,0.0002,2]
[389150998,1759591876257,-500.0,0.0002,2]
[389150999,1759591876273,-896.72,0.0002,2]
[389151000,1759591876289,-500.0,0.0002,2]
[389151001,1759591876305,-1747.71,0.0002,2]
[389151002,1759591876321,-151.0,0.0002,2]
[389151003,1759591876336,-500.0,0.0002,2]
[389151004,1759591876351,-151.0,0.0002,2]
[389151005,1759591876366,-500.0,0.0002,2]
[389151006,1759591876382,-480.55281792,0.0002,2]
[389151007,1759591876396,-595.63,0.0002,2]
[389151008,1759591876412,-185.54926364,0.0002,2]
[389151009,1759591876427,-500.0,0.0002,2]
[389151010,1759591876441,-827.71,0.0002,2]
[389151011,1759591876457,-151.0,0.0002,2]
[389151012,1759591876471,-500.0,0.0002,2]
[389151013,1759591876487,-504.25,0.0002,2]
[389151014,1759591876504,-151.0,0.0002,2]
[389151015,1759591876518,-151.0,0.0002,2]
[389151016,1759591876534,-500.0,0.0002,2]
[389151017,1759591876549,-890.07,0.0002,2]
[389151018,1759591876564,-500.0,0.0002,2]
[389151019,1759591876579,-914.63,0.0002,2]
[389151020,1759591876593,-1015.82,0.0002,2]
[389151021,1759591876610,-500.0,0.0002,2]
[389151022,1759591876624,-500.0,0.0002,2]
[389151023,1759591876639,-500.0,0.0002,2]
[389151024,1759591876654,-481.79417268,0.0002,2]
[389151025,1759591876670,-500.0,0.0002,2]
[389151026,1759591876685,-500.0,0.0002,2]
[389151027,1759591876700,-500.0,0.0002,2]
[389151028,1759591876717,-500.0,0.0002,2]
[389151029,1759591876732,-500.0,0.0002,2]
[389151030,1759591876747,-532.07,0.0002,2]
[389151031,1759591876761,-870.38,0.0002,2]
[389151032,1759591876776,-500.0,0.0002,2]
[389151033,1759591876791,-500.0,0.0002,2]
[389151034,1759591876807,-500.0,0.0002,2]
[389151035,1759591876825,-500.0,0.0002,2]
[389151036,1759591876840,-3160.55,0.0002,2]
[389151037,1759591876855,-1519.75,0.0002,2]
[389151038,1759591876870,-500.0,0.0002,2]
[389151039,1759591877035,-500.0,0.0002,2]
[389151040,1759591877048,-195.721782,0.0002,2]
[389151041,1759591877058,-419.4,0.0002,2]
[389151042,1759591877067,-195.721782,0.0002,2]
[389151043,1759591877078,-180.099124,0.0002,2]
[389151044,1759591877087,-500.0,0.0002,2]
[389151045,1759591877096,-1300.89,0.0002,2]
[389151046,1759591877105,-2067.67,0.0002,2]
[389151047,1759591877115,-195.721782,0.0002,2]
[389151048,1759591877124,-195.721782,0.0002,2]
[389151049,1759591877133,-151.0,0.0002,2]
[389151050,1759591877142,-151.0,0.0002,2]
[389151051,1759591877151,-500.0,0.0002,2]
[389151052,1759591877162,-312.351958,0.0002,2]
[389151053,1759591877171,-192.608986,0.0002,2]
[389151054,1759591877181,-312.351958,0.0002,2]
[389151055,1759591877193,-312.351958,0.0002,2]
[389151056,1759591877202,-500.0,0.0002,2]
[389151057,1759591877211,-312.351958,0.0002,2]
[389151058,1759591877220,-614.77,0.0002,2]
[389151059,1759591877229,-180.679866,0.0002,2]
[389151060,1759591877239,-857.26,0.0002,2]
[389151061,1759591877250,-180.679866,0.0002,2]
[389151062,1759591877261,-151.0,0.0002,2]
[389151063,1759591877272,-151.0,0.0002,2]
[389151064,1759591877282,-180.679866,0.0002,2]
[389151065,1759591877291,-151.0,0.0002,2]
[389151066,1759591877301,-151.0,0.0002,2]
[389151067,1759591877312,-180.679866,0.0002,2]
[389151068,1759591877322,-151.0,0.0002,2]
[389151069,1759591877331,-560.4,0.0002,2]
[389151070,1759591877341,-462.30280547,0.0002,2]
[389151071,1759591877350,-500.0,0.0002,2]
[389151072,1759591877359,-500.0,0.0002,2]
[389151073,1759591877369,-1254.52,0.0002,2]
[389151074,1759591877378,-500.0,0.0002,2]
[389151075,1759591877388,-731.76,0.0002,2]
[389151076,1759591877397,-500.0,0.0002,2]
[389151077,1759591877408,-500.0,0.0002,2]
[389151078,1759591877417,-500.0,0.0002,2]
[389151079,1759591877427,-500.0,0.0002,2]
[389151080,1759591877436,-1479.56,0.0002,2]
[389151081,1759591877445,-500.0,0.0002,2]
[389151082,1759591877455,-3943.88,0.0002,2]
[389151083,1759591877464,-151.0,0.0002,2]
[389151084,1759591877473,-500.0,0.0002,2]
[389151085,1759591877483,-151.0,0.0002,2]
[389151086,1759591877493,-500.0,0.0002,2]
[389151087,1759591877502,-151.504711,0.0002,2]
[389151088,1759591877512,-151.0,0.0002,2]
[389151089,1759591877522,-500.0,0.0002,2]
[389151090,1759591877531,-500.0,0.0002,2]
[389151091,1759591877552,-500.0,0.0002,2]
[389151092,1759591877562,-1175.17,0.0002,2]
[389151093,1759591877573,-500.0,0.0002,2]
[389151094,1759591877583,-500.0,0.0002,2]
[389151095,1759591877594,-500.0,0.0002,2]
[389151096,1759591877603,-1420.43,0.0002,2]
[389151097,1759591877614,-678.445089,0.0002,2]
[389151098,1759591877624,-414.29671918,0.0002,2]
[389151099,1759591877634,-678.445089,0.0002,2]
[389151100,1759591877644,-500.0,0.0002,2]
[389151101,1759591877655,-678.445089,0.0002,2]
[389151102,1759591877666,-151.0,0.0002,2]
[389151103,1759591877676,-678.445089,0.0002,2]
[389151104,1759591877686,-478.534729,0.0002,2]
[389151105,1759591877697,-500.0,0.0002,2]
[389151106,1759591877707,-151.0,0.0002,2]
[389151107,1759591877718,-478.534729,0.0002,2]
[389151108,1759591877730,-3237.92,0.0002,2]
[389151109,1759591877740,-160.0,0.0002,3]
[389151110,1759591877750,-478.534729,0.0002,2]
[389151111,1759591877759,-500.0,0.0002,2]
[389151112,1759591877769,-478.534729,0.0002,2]
[389151113,1759591877779,-251.601964,0.0002,2]
[389151114,1759591877789,-1919.12,0.0002,2]
[389151115,1759591877799,-151.0,0.0002,2]
[389151116,1759591877809,-968.29,0.0002,2]
[389151117,1759591877823,-151.0,0.0002,2]
[389151118,1759591877833,-251.601964,0.0002,2]
[389151119,1759591877842,-151.0,0.0002,2]
[389151120,1759591877853,-151.0,0.0002,2]
[389151121,1759591877863,-500.0,0.0002,2]
[389151122,1759591877872,-4834.1,0.0002,2]
[389151123,1759591877883,-668.17,0.0002,2]
[389151124,1759591877900,-151.0,0.0002,2]
[389151125,1759591877913,-251.601964,0.0002,2]
[389151126,1759591877922,-151.0,0.0002,2]
[389151127,1759591877932,-222.356868,0.0002,2]
[389151128,1759591877942,-251.601964,0.0002,2]
[389151129,1759591877952,-151.0,0.0002,2]
[389151130,1759591877962,-863.7,0.0002,2]
[389151131,1759591877972,-151.0,0.0002,2]
[389151132,1759591877982,-4308.41,0.0002,2]
[389151133,1759591877993,-151.0,0.0002,2]
[389151134,1759591878003,-500.0,0.0002,2]
[389151135,1759591878013,-1158.05,0.0002,2]
[389151136,1759591878023,-172.788523,0.0002,2]
[389151137,1759591878032,-395.23049652,0.0002,2]
[389151138,1759591878042,-500.0,0.0002,2]
[389151139,1759591878052,-1128.4,0.0002,2]
[389151140,1759591878062,-500.0,0.0002,2]
[389151141,1759591878072,-500.0,0.0002,2]
[389151142,1759591878082,-151.0,0.0002,2]
[389151143,1759591878092,-1888.79,0.0002,2]
[389151144,1759591878102,-500.0,0.0002,2]
[389151145,1759591878112,-500.0,0.0002,2]
[389151146,1759591878122,-151.0,0.0002,2]
[389151147,1759591878132,-500.0,0.0002,2]
[389151148,1759591878142,-500.0,0.0002,2]
[389151149,1759591878152,-500.0,0.0002,2]
[389151150,1759591878162,-3598.98,0.0002,2]
[389151151,1759591878173,-500.0,0.0002,2]
[389151152,1759591878185,-500.0,0.0002,2]
[389151153,1759591878194,-3279.78,0.0002,2]
[389151154,1759591878208,-2623.19,0.0002,2]
[389151155,1759591878218,-500.0,0.0002,2]
[389151156,1759591878228,-1046.7,0.0002,2]
[389151157,1759591878239,-500.0,0.0002,2]
[389151158,1759591878249,-500.0,0.0002,2]
[389151159,1759591878259,-500.0,0.0002,2]
[389151160,1759591878269,-500.0,0.0002,2]
[389151161,1759591878279,-556.72226983,0.0002,2]
[389151162,1759591878289,-500.0,0.0002,2]
[389151163,1759591878299,-916.44,0.0002,2]
[389151164,1759591878308,-180.638085,0.0002,2]
[389151165,1759591878319,-500.0,0.0002,2]
[389151166,1759591878329,-649.69,0.0002,2]
[389151167,1759591878339,-500.0,0.0002,2]
[389151168,1759591878349,-151.0,0.0002,2]
[389151169,1759591878360,-716.0,0.0002,2]
[389151170,1759591878370,-343.3901885,0.0002,2]
[389151171,1759591878381,-151.0,0.0002,2]
[389151172,1759591878391,-692.99,0.0002,2]
[389151173,1759591878401,-151.0,0.0002,2]
[389151174,1759591878413,-502.19,0.0002,2]
[389151175,1759591878423,-151.0,0.0002,2]
[389151176,1759591878434,-1677.96,0.0002,2]
[389151177,1759591878443,-500.0,0.0002,2]
[389151178,1759591878453,-725.08,0.0002,2]
[389151179,1759591878462,-500.0,0.0002,2]
[389151180,1759591878472,-543.32,0.0002,2]
[389151181,1759591878482,-407.03477911,0.0002,2]
[389151182,1759591878491,-2622.01,0.0002,2]
[389151183,1759591878501,-1956.57,0.0002,2]
[389151184,1759591878511,-500.0,0.0002,2]
[389151185,1759591878521,-151.0,0.0002,2]
[389151186,1759591878530,-167.688211,0.0002,2]
[389151187,1759591878540,-500.0,0.0002,2]
[389151188,1759591878549,-2133.663344,0.0002,2]
[389151189,1759591878559,-167.688211,0.0002,2]
[389151190,1759591878568,-238.190311,0.0002,2]
[389151191,1759591878578,-238.190311,0.0002,2]
[389151192,1759591878588,-2133.663344,0.0002,2]
[389151193,1759591878597,-596.147156,0.0002,2]
[389151194,1759591878611,-685.43,0.0002,2]
[389151195,1759591878622,-238.190311,0.0002,2]
[389151196,1759591878632,-2133.663344,0.0002,2]
[389151197,1759591878642,-4582.94,0.0002,2]
[389151198,1759591878652,-596.147156,0.0002,2]
[389151199,1759591878666,-238.190314,0.0002,2]
[389151200,1759591878676,-167.688211,0.0002,2]
[389151201,1759591878686,-2133.663347,0.0002,2]
[389151202,1759591878696,-620.36,0.0002,2]
[389151203,1759591878706,-596.147156,0.0002,2]
[389151204,1759591878716,-388.72231467,0.0002,2]
[389151205,1759591878726,-1066.95,0.0002,2]
[389151206,1759591878736,-167.68821369,0.0002,2]
[389151207,1759591878746,-1558.65,0.0002,2]
[389151208,1759591878756,-596.14715,0.0002,2]
[389151209,1759591878765,-500.0,0.0002,2]
[389151210,1759591878775,-500.0,0.0002,2]
[389151211,1759591878785,-500.0,0.0002,2]
[389151212,1759591878796,-583.58,0.0002,2]
[389151213,1759591878808,-850.74,0.0002,2]
[389151214,1759591878819,-500.0,0.0002,2]
[389151215,1759591878829,-782.55,0.0002,2]
[389151216,1759591878839,-151.0,0.0002,2]
[389151217,1759591878851,-232.342074,0.0002,2]
[389151218,1759591878861,-151.0,0.0002,2]
[389151219,1759591878871,-500.0,0.0002,2]
[389151220,1759591878881,-500.0,0.0002,2]
[389151221,1759591878891,-232.342074,0.0002,2]
[389151222,1759591878901,-151.0,0.0002,2]
[389151223,1759591878914,-232.342074,0.0002,2]
[389151224,1759591878924,-1154.37,0.0002,2]
[389151225,1759591878933,-232.342078,0.0002,2]
[389151226,1759591878944,-500.0,0.0002,2]
[389151227,1759591878954,-500.0,0.0002,2]
[389151228,1759591878964,-837.9,0.0002,2]
[389151229,1759591878974,-482.95183202,0.0002,2]
[389151230,1759591879126,-2615.62,0.0002,2]
[389151231,1759591879149,-500.0,0.0002,2]
[389151232,1759591879162,-500.0,0.0002,2]